[Event "HUN-chT Youth 2019"]
[Site "Budapest"]
[Date "2019.10.28"]
[Round "5.27"]
[White "Monduk, Ferenc"]
[Black "Kelemen, Szabolcs"]
[Result "0-1"]
[ECO "D89"]
[WhiteElo "1987"]
[BlackElo "1960"]
[Annotator "NA RC"]
[PlyCount "94"]
[EventDate "2019.10.26"]
[EventType "team-tourn"]
[EventCountry "HUN"]
[SourceTitle "playchess.com"]
[Source "ChessBase"]
[SourceQuality "1"]
[TimeControl "5400+30"]

1. d4 {[%emt 0:00:00]} Nf6 {[%emt 0:00:00]} 2. c4 {[%emt 0:00:00]} g6 {[%emt 0:00:00]} 3. Nc3 {[%emt 0:00:00]} d5 {[%emt 0:00:00]} 4. cxd5 {[%emt 0:00:00]} Nxd5 {[%emt 0:00:00]} 5. e4 {[%emt 0:00:00]} Nxc3 {[%emt 0:00:00]} 6. bxc3 {[%emt 0:00:00]} Bg7 {[%emt 0:00:00]} 7. Bc4 {[%emt 0:00:03]} c5 {[%emt 0:00:05]} 8. Ne2 {[%emt 0:00:04]} O-O {[%emt 0:00:14]} 9. O-O {[%emt 0:00:05]} Nc6 {[%emt 0:00:24]} 10. Be3 {[%emt 0:00:13]} cxd4 {[%emt 0:01:47]} 11. cxd4 {[%emt 0:00:08]} Bg4 {[%emt 0:03:09]} 12. f3 {[%emt 0:00:17]} Na5 {[%emt 0:00:37]} 13. Bd3 {[%emt 0:00:59]} Be6 {[%emt 0:00:15]} 14. e5 {[%emt 0:08:49]} Bc4 {[%emt 0:02:07]} 15. Nf4 {[%emt 0:08:43]} Rc8 {[%emt 0:01:55]} 16. Rc1 {[%emt 0:01:12]} b5 {[%emt 0:00:45]} 17. Rf2 {[%emt 0:05:27]} Bxd3 {[%emt 0:00:48]} 18. Rxc8 {[%emt 0:00:08]} Qxc8 {[%emt 0:00:08]} 19. Qxd3 {[%emt 0:00:03]} Nc4 {[%emt 0:02:29]} 20. Rc2 {[%emt 0:00:57]} Rd8 {[%emt 0:01:11]} 21. Qe4 {[%emt 0:00:43]} Qa6 {[%emt 0:01:35]} 22. Bf2 {[%emt 0:01:45]} Qa5 {[%emt 0:06:39]} 23. h4 {[%emt 0:08:36]} e6 {[%emt 0:05:46]} 24. h5 {[%emt 0:11:24]} Bh6 {[%emt 0:08:47]} 25. hxg6 {[%emt 0:07:04]} hxg6 {[%emt 0:00:12]} 26. Nd3 {[%emt 0:10:22]} Rd5 {[%emt 0:03:11]} 27. Bh4 {[%emt 0:01:04]} Qb6 {[%emt 0:02:00]} 28. Bf2 {[%emt 0:00:34]} Qd8 {[%emt 0:00:53]} 29. Nf4 {[%emt 0:01:36]} Rd7 {[%emt 0:01:24]} 30. Nd3 {[%emt 0:05:09]} Rc7 {[%emt 0:05:38]} 31. Nc5 {[%emt 0:02:11]} Qg5 {[%emt 0:03:05]} 32. a4 {[%emt 0:01:07]} Ne3 {[%emt 0:00:50]} 33. Bh4 {[%emt 0:03:27]} Qf5 {[%emt 0:06:27]} 34. Qa8+ {[%emt 0:04:28]} Kh7 {[%emt 0:00:30]} 35. Bf6 {[%emt 0:00:56]} Bg7 {[%emt 0:00:27]} 36. Bxg7 {[%emt 0:00:35]} Kxg7 {[%emt 0:00:05]} 37. Nxe6+ {[%emt 0:00:39]} Qxe6 {[%emt 0:00:05]} 38. Rxc7 {[%emt 0:00:05]} Qa2 {[%emt 0:00:23]} 39. f4 {[%emt 0:00:06]} Qe2 {[%emt 0:01:17]} 40. Rc1 {[%emt 0:04:14]} Qd2 {[%emt 0:00:47]} 41. Qc6 {[%emt 0:00:16]} Ng4 {[%emt 0:01:32]} 42. Rf1 {[%emt 0:07:31]} Qe3+ {[%emt 0:00:28]} 43. Kh1 {[%emt 0:00:21]} Qg3 {[%emt 0:00:06]} 44. Qf6+ {[%emt 0:01:24]} Nxf6 {[%emt 0:00:10]} 45. exf6+ {[%emt 0:00:04]} Kxf6 {[%emt 0:00:06]} 46. axb5 {[%emt 0:00:06]} Qd3 {[%emt 0:00:16]} 47. Ra1 {[%emt 0:00:13]} Qxd4 {[%emt 0:00:05]} 0-1

[Event "HUN-chT Youth 2019"]
[Site "Budapest"]
[Date "2019.10.28"]
[Round "5.28"]
[White "Tancz, Janos"]
[Black "Lengyel, Andrea"]
[Result "0-1"]
[ECO "B33"]
[WhiteElo "1486"]
[BlackElo "1872"]
[Annotator "NA RC"]
[PlyCount "84"]
[EventDate "2019.10.26"]
[EventType "team-tourn"]
[EventCountry "HUN"]
[SourceTitle "playchess.com"]
[Source "ChessBase"]
[SourceQuality "1"]
[TimeControl "5400+30"]

1. e4 {[%emt 0:00:00]} c5 {[%emt 0:00:00]} 2. Nf3 {[%emt 0:00:00]} Nc6 {[%emt 0:00:00]} 3. d4 {[%emt 0:00:00]} cxd4 {[%emt 0:00:00]} 4. Nxd4 {[%emt 0:00:00]} Nf6 {[%emt 0:00:00]} 5. Nc3 {[%emt 0:00:09]} e5 {[%emt 0:00:00]} 6. Ndb5 {[%emt 0:00:30]} d6 7. Bg5 {[%emt 0:01:35]} a6 {[%emt 0:00:00]} 8. Na3 {[%emt 0:00:05]} b5 {[%emt 0:00:00]} 9. Nd5 {[%emt 0:00:27]} Be7 {[%emt 0:00:00]} 10. Bxf6 {[%emt 0:01:10]} Bxf6 {[%emt 0:00:01]} 11. Nxf6+ {[%emt 0:00:49]} Qxf6 {[%emt 0:04:36]} 12. Qd5 {[%emt 0:01:40]} Bb7 {[%emt 0:02:00]} 13. Rd1 {[%emt 0:02:48]} Ke7 {[%emt 0:08:43]} 14. f3 {[%emt 0:02:24]} Rab8 {[%emt 0:08:05]} 15. Qd2 {[%emt 0:00:33]} Rhd8 {[%emt 0:04:07]} 16. c3 {[%emt 0:00:25]} Qe6 {[%emt 0:05:55]} 17. b3 {[%emt 0:02:21]} Kf8 {[%emt 0:00:42]} 18. Be2 {[%emt 0:00:51]} Ne7 {[%emt 0:05:10]} 19. O-O {[%emt 0:01:11]} d5 {[%emt 0:00:43]} 20. Kh1 {[%emt 0:00:35]} Bc6 {[%emt 0:01:03]} 21. exd5 {[%emt 0:00:49]} Nxd5 {[%emt 0:04:20]} 22. c4 {[%emt 0:02:15]} b4 {[%emt 0:23:36]} 23. cxd5 {[%emt 0:01:05]} Rxd5 {[%emt 0:00:05]} 24. Qc2 {[%emt 0:00:21]} bxa3 {[%emt 0:08:12]} 25. Rxd5 {[%emt 0:02:00]} Bxd5 {[%emt 0:02:11]} 26. Qxh7 {[%emt 0:01:02]} Rc8 {[%emt 0:01:54]} 27. Qh8+ {[%emt 0:01:04]} Ke7 {[%emt 0:00:06]} 28. Qxg7 {[%emt 0:00:08]} Rc2 {[%emt 0:00:34]} 29. Qg5+ {[%emt 0:00:48]} f6 {[%emt 0:00:30]} 30. Qg7+ {[%emt 0:00:28]} Qf7 {[%emt 0:00:01]} 31. Qxf7+ {[%emt 0:00:40]} Bxf7 {[%emt 0:00:07]} 32. Bxa6 {[%emt 0:00:10]} Rxa2 {[%emt 0:00:53]} 33. h4 {[%emt 0:01:43]} Rb2 {[%emt 0:00:54]} 34. Ra1 {[%emt 0:01:14]} a2 {[%emt 0:04:50]} 35. Kh2 {[%emt 0:01:04]} Bxb3 {[%emt 0:00:16]} 36. Bd3 {[%emt 0:00:11]} Rd2 {[%emt 0:00:07]} 37. Bf1 {[%emt 0:03:30]} Rd1 {[%emt 0:01:49]} 38. Bc4 {[%emt 0:00:18]} Rxa1 {[%emt 0:00:34]} 39. Bxb3 {[%emt 0:00:07]} Rh1+ {[%emt 0:00:04]} 40. Kxh1 {[%emt 0:00:29]} a1=Q+ {[%emt 0:00:02]} 41. Kh2 {[%emt 0:00:14]} Qd4 {[%emt 0:00:26]} 42. Kh3 {[%emt 0:00:40]} e4 {[%emt 0:00:07]} 0-1

[Event "HUN-chT Youth 2019"]
[Site "Budapest"]
[Date "2019.10.28"]
[Round "5.31"]
[White "Szabo, A. Martin"]
[Black "Gombocz, Zsofia"]
[Result "0-1"]
[ECO "D02"]
[WhiteElo "1769"]
[BlackElo "1917"]
[Annotator "NA RC"]
[PlyCount "66"]
[EventDate "2019.10.26"]
[EventType "team-tourn"]
[EventCountry "HUN"]
[SourceTitle "playchess.com"]
[Source "ChessBase"]
[SourceQuality "1"]
[TimeControl "5400+30"]

1. Nf3 {[%emt 0:00:00]} d5 {[%emt 0:00:00]} 2. d4 {[%emt 0:00:00]} Nf6 {[%emt 0:00:00]} 3. g3 {[%emt 0:00:00]} e6 {[%emt 0:00:00]} 4. Bg2 {[%emt 0:00:00]} Be7 {[%emt 0:00:10]} 5. O-O {[%emt 0:00:04]} O-O {[%emt 0:00:07]} 6. c4 {[%emt 0:00:47]} b6 {[%emt 0:01:03]} 7. Nc3 {[%emt 0:03:37]} c6 {[%emt 0:02:54]} 8. Ne5 {[%emt 0:01:48]} Bb7 {[%emt 0:02:12]} 9. cxd5 {[%emt 0:00:50]} cxd5 {[%emt 0:00:56]} 10. Bf4 {[%emt 0:09:18]} Nbd7 {[%emt 0:03:50]} 11. Nd3 {[%emt 0:00:57]} a6 {[%emt 0:02:10]} 12. f3 {[%emt 0:05:37]} b5 {[%emt 0:04:18]} 13. a3 {[%emt 0:01:20]} Qb6 {[%emt 0:02:32]} 14. Be3 {[%emt 0:09:49]} Rfc8 {[%emt 0:11:07]} 15. Bf2 {[%emt 0:03:29]} a5 {[%emt 0:06:21]} 16. e4 {[%emt 0:08:50]} b4 {[%emt 0:03:22]} 17. axb4 {[%emt 0:04:25]} axb4 {[%emt 0:00:13]} 18. Rxa8 {[%emt 0:00:05]} Rxa8 {[%emt 0:00:26]} 19. e5 {[%emt 0:02:30]} bxc3 {[%emt 0:00:48]} 20. exf6 {[%emt 0:00:07]} Nxf6 {[%emt 0:00:16]} 21. bxc3 {[%emt 0:00:05]} Ba6 {[%emt 0:02:00]} 22. Re1 {[%emt 0:00:16]} Rc8 {[%emt 0:00:40]} 23. Nc5 {[%emt 0:04:38]} Bc4 {[%emt 0:06:58]} 24. Qa1 {[%emt 0:05:48]} Rb8 {[%emt 0:08:01]} 25. h4 {[%emt 0:02:39]} Bd6 {[%emt 0:11:23]} 26. g4 Qc6 27. h5 {[%emt 0:11:01]} Bc7 {[%emt 0:06:58]} 28. h6 {[%emt 0:08:35]} Nd7 {[%emt 0:10:34]} 29. Nxd7 {[%emt 0:00:38]} Qxd7 {[%emt 0:00:06]} 30. Qa3 {[%emt 0:05:16]} gxh6 {[%emt 0:05:34]} 31. Be3 {[%emt 0:05:32]} Qd8 {[%emt 0:02:18]} 32. g5 {[%emt 0:02:56]} hxg5 {[%emt 0:00:33]} 33. Qc1 {[%emt 0:00:13]} Qd6 {[%emt 0:01:10]} 0-1

[Event "HUN-chT Youth 2019"]
[Site "Budapest"]
[Date "2019.10.28"]
[Round "5.32"]
[White "Barasits, Balint"]
[Black "Csajbok, Levente Tamas"]
[Result "1/2-1/2"]
[ECO "C45"]
[WhiteElo "1988"]
[BlackElo "1820"]
[Annotator "NA RC"]
[PlyCount "82"]
[EventDate "2019.10.26"]
[EventType "team-tourn"]
[EventCountry "HUN"]
[SourceTitle "playchess.com"]
[Source "ChessBase"]
[SourceQuality "1"]
[TimeControl "5400+30"]

1. e4 {[%emt 0:00:00]} e5 {[%emt 0:00:00]} 2. Nf3 {[%emt 0:00:00]} Nc6 {[%emt 0:00:00]} 3. d4 {[%emt 0:00:00]} exd4 {[%emt 0:00:00]} 4. Nxd4 {[%emt 0:00:01]} Bc5 {[%emt 0:00:08]} 5. Nb3 {[%emt 0:00:07]} Bb6 {[%emt 0:00:20]} 6. Nc3 {[%emt 0:00:05]} Nf6 {[%emt 0:07:49]} 7. Qe2 {[%emt 0:01:37]} d6 {[%emt 0:00:24]} 8. Be3 {[%emt 0:00:08]} O-O {[%emt 0:02:16]} 9. O-O-O {[%emt 0:00:15]} Be6 {[%emt 0:05:18]} 10. f3 {[%emt 0:02:31]} Ne5 {[%emt 0:04:43]} 11. Nd4 {[%emt 0:01:30]} Ba5 {[%emt 0:07:45]} 12. Nxe6 {[%emt 0:04:54]} fxe6 {[%emt 0:00:10]} 13. Bd4 {[%emt 0:00:10]} Nc6 {[%emt 0:07:42]} 14. Qc4 {[%emt 0:02:03]} Nxd4 {[%emt 0:05:24]} 15. Qxd4 {[%emt 0:02:41]} e5 {[%emt 0:01:13]} 16. Qe3 {[%emt 0:02:04]} a6 {[%emt 0:02:38]} 17. g4 {[%emt 0:00:46]} b5 {[%emt 0:00:56]} 18. h4 {[%emt 0:04:48]} Bb6 {[%emt 0:04:04]} 19. Qd2 {[%emt 0:01:37]} b4 {[%emt 0:05:48]} 20. Na4 {[%emt 0:08:42]} Nd7 {[%emt 0:01:56]} 21. Nxb6 {[%emt 0:03:04]} Nxb6 {[%emt 0:00:08]} 22. Be2 {[%emt 0:01:02]} a5 {[%emt 0:00:33]} 23. h5 {[%emt 0:01:05]} Qd7 {[%emt 0:06:17]} 24. h6 {[%emt 0:04:29]} g6 {[%emt 0:00:19]} 25. Rdf1 {[%emt 0:00:25]} Rf4 {[%emt 0:01:48]} 26. Rhg1 {[%emt 0:23:00]} Kf7 {[%emt 0:09:47]} 27. g5 {[%emt 0:00:26]} Ke7 {[%emt 0:00:11]} 28. Rg3 {[%emt 0:01:11]} c5 {[%emt 0:02:53]} 29. Qd3 {[%emt 0:01:23]} c4 {[%emt 0:01:19]} 30. Qe3 {[%emt 0:00:08]} Qc7 {[%emt 0:00:12]} 31. Rg4 {[%emt 0:01:09]} Raf8 {[%emt 0:09:39]} 32. Rxf4 {[%emt 0:00:08]} Rxf4 {[%emt 0:00:04]} 33. c3 {[%emt 0:01:22]} Na4 {[%emt 0:05:17]} 34. Bd1 {[%emt 0:02:49]} Nb6 {[%emt 0:01:33]} 35. Rg1 {[%emt 0:00:40]} Qc5 {[%emt 0:01:23]} 36. Re1 {[%emt 0:10:02]} Qb5 {[%emt 0:01:29]} 37. Qd2 {[%emt 0:01:01]} b3 {[%emt 0:01:10]} 38. a3 {[%emt 0:04:31]} Qc5 {[%emt 0:00:55]} 39. Be2 {[%emt 0:05:27]} Rh4 {[%emt 0:01:37]} 40. Rf1 {[%emt 0:00:31]} Rf4 {[%emt 0:00:03]} 41. Rd1 {[%emt 0:00:14]} Rh4 {[%emt 0:00:10]} 1/2-1/2

[Event "HUN-chT Youth 2019"]
[Site "Budapest"]
[Date "2019.10.28"]
[Round "5.33"]
[White "Szivak, Andras"]
[Black "Kiraly, Barnabas"]
[Result "1/2-1/2"]
[ECO "E47"]
[WhiteElo "1730"]
[BlackElo "1742"]
[Annotator "NA RC"]
[PlyCount "91"]
[EventDate "2019.10.26"]
[EventType "team-tourn"]
[EventCountry "HUN"]
[SourceTitle "playchess.com"]
[Source "ChessBase"]
[SourceQuality "1"]
[TimeControl "5400+30"]

1. d4 {[%emt 0:00:00]} Nf6 {[%emt 0:00:00]} 2. c4 {[%emt 0:00:15]} e6 {[%emt 0:00:00]} 3. Nc3 {[%emt 0:00:38]} Bb4 {[%emt 0:00:00]} 4. e3 {[%emt 0:00:18]} O-O {[%emt 0:00:02]} 5. Bd3 {[%emt 0:05:18]} c5 {[%emt 0:01:11]} 6. Nge2 {[%emt 0:01:30]} Nc6 {[%emt 0:00:41]} 7. O-O {[%emt 0:03:27]} Bxc3 {[%emt 0:02:48]} 8. Nxc3 {[%emt 0:02:31]} cxd4 {[%emt 0:01:20]} 9. exd4 {[%emt 0:00:42]} d5 {[%emt 0:01:27]} 10. cxd5 {[%emt 0:10:20]} Nxd5 {[%emt 0:04:48]} 11. Be4 {[%emt 0:05:34]} Nde7 {[%emt 0:04:53]} 12. Be3 {[%emt 0:04:22]} Nf5 {[%emt 0:05:02]} 13. Bxf5 {[%emt 0:08:47]} exf5 {[%emt 0:00:14]} 14. d5 {[%emt 0:01:05]} Ne5 {[%emt 0:00:30]} 15. Bd4 {[%emt 0:02:09]} Ng4 {[%emt 0:03:52]} 16. h3 {[%emt 0:02:32]} Nf6 {[%emt 0:00:25]} 17. Qb3 {[%emt 0:01:44]} f4 {[%emt 0:05:46]} 18. f3 {[%emt 0:09:03]} Nh5 {[%emt 0:02:03]} 19. Bc5 {[%emt 0:05:08]} Re8 {[%emt 0:03:25]} 20. Rfe1 {[%emt 0:01:30]} b6 {[%emt 0:02:22]} 21. Bd4 {[%emt 0:03:37]} Bd7 {[%emt 0:04:43]} 22. Qc2 {[%emt 0:07:28]} Qg5 {[%emt 0:02:32]} 23. Ne4 {[%emt 0:07:49]} Qg6 {[%emt 0:07:39]} 24. h4 {[%emt 0:09:10]} Ng3 {[%emt 0:04:55]} 25. Qc7 {[%emt 0:04:00]} Nxe4 {[%emt 0:12:15]} 26. Qxd7 {[%emt 0:01:01]} Nd6 {[%emt 0:02:14]} 27. Qc6 {[%emt 0:01:30]} Rec8 {[%emt 0:02:18]} 28. Qd7 {[%emt 0:01:00]} Rd8 {[%emt 0:00:02]} 29. Qc6 {[%emt 0:00:38]} Rac8 {[%emt 0:00:03]} 30. Qa4 {[%emt 0:00:51]} Rc2 {[%emt 0:00:58]} 31. Bf2 {[%emt 0:00:35]} Rdc8 {[%emt 0:01:39]} 32. Rf1 {[%emt 0:00:46]} h5 {[%emt 0:00:03]} 33. Qxf4 {[%emt 0:00:23]} Rxb2 {[%emt 0:00:23]} 34. Rac1 {[%emt 0:00:37]} Rcc2 {[%emt 0:00:07]} 35. Rxc2 {[%emt 0:00:20]} Rxc2 {[%emt 0:00:02]} 36. Qg3 {[%emt 0:00:21]} Rxa2 {[%emt 0:00:59]} 37. Qxg6 {[%emt 0:00:35]} fxg6 {[%emt 0:00:01]} 38. Bg3 {[%emt 0:00:39]} Nb7 {[%emt 0:04:15]} 39. Rd1 {[%emt 0:00:34]} Nc5 {[%emt 0:00:01]} 40. d6 {[%emt 0:00:26]} Nd7 {[%emt 0:00:01]} 41. Re1 {[%emt 0:00:33]} Nf6 {[%emt 0:02:01]} 42. Re7 {[%emt 0:00:31]} Kf8 {[%emt 0:02:47]} 43. Rc7 {[%emt 0:00:23]} b5 {[%emt 0:00:48]} 44. Rc8+ {[%emt 0:00:33]} Kf7 {[%emt 0:00:06]} 45. Rc7+ {[%emt 0:00:13]} Kf8 {[%emt 0:00:01]} 46. Rc8+ {[%emt 0:00:43]} 1/2-1/2

[Event "HUN-chT Youth 2019"]
[Site "Budapest"]
[Date "2019.10.28"]
[Round "5.34"]
[White "Petroczy, Zoltan"]
[Black "Novak, Levente Peter"]
[Result "0-1"]
[ECO "B70"]
[WhiteElo "1573"]
[BlackElo "1639"]
[Annotator "NA"]
[PlyCount "46"]
[EventDate "2019.10.26"]
[EventType "team-tourn"]
[EventCountry "HUN"]
[SourceTitle "playchess.com"]
[Source "ChessBase"]
[SourceQuality "1"]
[TimeControl "5400+30"]

1. e4 {[%emt 0:00:00]} c5 {[%emt 0:00:00]} 2. Nf3 {[%emt 0:00:00]} d6 {[%emt 0:00:00]} 3. d4 {[%emt 0:00:00]} cxd4 {[%emt 0:00:00]} 4. Nxd4 {[%emt 0:00:10]} Nf6 {[%emt 0:00:00]} 5. Nc3 {[%emt 0:00:19]} g6 {[%emt 0:00:15]} 6. Bg5 {[%emt 0:00:07]} Bg7 {[%emt 0:00:31]} 7. Bb5+ {[%emt 0:00:13]} Bd7 {[%emt 0:01:48]} 8. Qe2 {[%emt 0:00:09]} a6 {[%emt 0:08:02]} 9. Bxd7+ {[%emt 0:00:14]} Nbxd7 {[%emt 0:00:24]} 10. O-O-O {[%emt 0:00:31]} O-O {[%emt 0:02:16]} 11. f4 {[%emt 0:00:21]} Qa5 {[%emt 0:07:28]} 12. Nb3 {[%emt 0:00:22]} Qc7 {[%emt 0:00:29]} 13. f5 {[%emt 0:02:41]} b5 {[%emt 0:02:12]} 14. g4 {[%emt 0:02:33]} b4 {[%emt 0:01:07]} 15. Nd5 {[%emt 0:00:44]} Nxd5 {[%emt 0:02:03]} 16. Rxd5 {[%emt 0:00:47]} Nf6 {[%emt 0:01:43]} 17. Bxf6 {[%emt 0:03:41]} Bxf6 {[%emt 0:02:22]} 18. fxg6 {[%emt 0:01:13]} hxg6 {[%emt 0:01:27]} 19. h4 {[%emt 0:02:34]} a5 {[%emt 0:07:57]} 20. g5 {[%emt 0:00:49]} Be5 {[%emt 0:13:30]} 21. h5 {[%emt 0:01:01]} a4 {[%emt 0:00:44]} 22. hxg6 {[%emt 0:00:52]} axb3 {[%emt 0:09:14]} 23. gxf7+ {[%emt 0:00:35]} Rxf7 0-1

[Event "HUN-chT Youth 2019"]
[Site "Budapest"]
[Date "2019.10.28"]
[Round "5.35"]
[White "Deak-Sala, Emilia"]
[Black "Farkas, Boglarka"]
[Result "1-0"]
[ECO "B23"]
[WhiteElo "1528"]
[BlackElo "1391"]
[Annotator "NA"]
[PlyCount "61"]
[EventDate "2019.10.26"]
[EventType "team-tourn"]
[EventCountry "HUN"]
[SourceTitle "playchess.com"]
[Source "ChessBase"]
[SourceQuality "1"]
[TimeControl "5400+30"]

1. e4 {[%emt 0:00:00]} c5 {[%emt 0:00:00]} 2. Nc3 {[%emt 0:00:00]} Nc6 {[%emt 0:00:10]} 3. f4 {[%emt 0:00:00]} d6 {[%emt 0:00:16]} 4. Nf3 {[%emt 0:00:00]} Nf6 {[%emt 0:00:28]} 5. Bc4 {[%emt 0:00:11]} e6 {[%emt 0:00:43]} 6. d3 {[%emt 0:00:51]} Be7 {[%emt 0:00:28]} 7. O-O {[%emt 0:00:35]} O-O {[%emt 0:00:21]} 8. Bb3 {[%emt 0:00:23]} a6 {[%emt 0:01:28]} 9. a3 {[%emt 0:00:42]} b5 {[%emt 0:00:31]} 10. Ne2 {[%emt 0:02:10]} Qc7 {[%emt 0:00:53]} 11. Ng3 {[%emt 0:00:15]} Bb7 {[%emt 0:01:11]} 12. f5 {[%emt 0:01:39]} d5 {[%emt 0:04:00]} 13. Qe1 {[%emt 0:05:15]} Bd6 {[%emt 0:02:40]} 14. Bg5 {[%emt 0:01:05]} Bxg3 {[%emt 0:01:36]} 15. hxg3 {[%emt 0:00:02]} exf5 {[%emt 0:00:44]} 16. Bxf6 {[%emt 0:00:47]} gxf6 {[%emt 0:00:09]} 17. exd5 {[%emt 0:01:11]} Ne7 {[%emt 0:02:48]} 18. c4 {[%emt 0:02:00]} Ng6 {[%emt 0:01:04]} 19. Nh4 {[%emt 0:03:49]} f4 {[%emt 0:08:39]} 20. gxf4 {[%emt 0:02:17]} Kh8 {[%emt 0:01:26]} 21. Qc3 {[%emt 0:06:45]} Qd6 {[%emt 0:01:00]} 22. Nf5 {[%emt 0:00:59]} Qd8 {[%emt 0:02:24]} 23. Ng3 {[%emt 0:06:42]} Qd6 {[%emt 0:00:51]} 24. Ne4 {[%emt 0:03:20]} b4 {[%emt 0:04:20]} 25. axb4 {[%emt 0:00:33]} cxb4 26. Nxd6 {[%emt 0:01:39]} bxc3 {[%emt 0:00:28]} 27. Nxb7 {[%emt 0:00:01]} cxb2 {[%emt 0:00:34]} 28. Rab1 {[%emt 0:00:39]} Rab8 {[%emt 0:00:27]} 29. Na5 Rfe8 {[%emt 0:03:01]} 30. Rxb2 {[%emt 0:01:47]} Re3 31. Rd2 1-0

[Event "HUN-chT Youth 2019"]
[Site "Budapest"]
[Date "2019.10.28"]
[Round "5.36"]
[White "Nyuli, Leila"]
[Black "Makay, Mark Janos"]
[Result "0-1"]
[ECO "B32"]
[WhiteElo "1258"]
[BlackElo "1442"]
[Annotator "NA RC"]
[PlyCount "110"]
[EventDate "2019.10.26"]
[EventType "team-tourn"]
[EventCountry "HUN"]
[SourceTitle "playchess.com"]
[Source "ChessBase"]
[SourceQuality "1"]
[TimeControl "5400+30"]

1. e4 {[%emt 0:00:00]} c5 {[%emt 0:00:22]} 2. Nf3 {[%emt 0:00:00]} Nc6 {[%emt 0:00:43]} 3. d4 {[%emt 0:00:19]} cxd4 {[%emt 0:00:55]} 4. Nxd4 {[%emt 0:00:19]} Qb6 {[%emt 0:00:30]} 5. Nxc6 {[%emt 0:01:18]} dxc6 {[%emt 0:00:59]} 6. Nc3 {[%emt 0:01:06]} e5 {[%emt 0:01:08]} 7. Bc4 {[%emt 0:01:49]} Nf6 {[%emt 0:03:09]} 8. h3 {[%emt 0:03:33]} Bb4 {[%emt 0:02:47]} 9. Qf3 {[%emt 0:03:05]} O-O {[%emt 0:03:39]} 10. O-O {[%emt 0:02:43]} Be6 {[%emt 0:05:26]} 11. Bxe6 {[%emt 0:02:12]} fxe6 {[%emt 0:00:33]} 12. Qe2 {[%emt 0:04:30]} Rad8 {[%emt 0:10:25]} 13. Bd2 {[%emt 0:04:37]} Qc7 {[%emt 0:08:21]} 14. Rad1 {[%emt 0:02:45]} Rd4 {[%emt 0:04:50]} 15. f3 {[%emt 0:01:58]} Rfd8 {[%emt 0:01:33]} 16. a3 {[%emt 0:01:28]} Ba5 {[%emt 0:01:47]} 17. b4 {[%emt 0:01:31]} Bb6 {[%emt 0:00:23]} 18. Be3 {[%emt 0:00:28]} Rxd1 {[%emt 0:04:47]} 19. Rxd1 {[%emt 0:00:15]} Rxd1+ {[%emt 0:01:14]} 20. Nxd1 {[%emt 0:00:22]} Qd6 {[%emt 0:01:06]} 21. Bxb6 {[%emt 0:00:45]} axb6 {[%emt 0:00:21]} 22. Ne3 {[%emt 0:00:38]} Qd4 {[%emt 0:01:27]} 23. Qd3 {[%emt 0:01:02]} b5 {[%emt 0:00:42]} 24. Qxd4 {[%emt 0:01:07]} exd4 {[%emt 0:00:08]} 25. Ng4 {[%emt 0:00:20]} Nxg4 {[%emt 0:01:17]} 26. hxg4 {[%emt 0:00:11]} e5 {[%emt 0:00:21]} 27. Kf2 {[%emt 0:00:15]} Kf7 {[%emt 0:00:24]} 28. g3 {[%emt 0:00:18]} g5 {[%emt 0:02:33]} 29. f4 {[%emt 0:01:15]} gxf4 {[%emt 0:00:09]} 30. gxf4 {[%emt 0:00:23]} exf4 {[%emt 0:00:02]} 31. Kf3 {[%emt 0:00:12]} Ke6 {[%emt 0:00:20]} 32. Kxf4 {[%emt 0:00:10]} h6 {[%emt 0:00:08]} 33. e5 {[%emt 0:00:55]} b6 {[%emt 0:00:13]} 34. Ke4 {[%emt 0:00:17]} c5 {[%emt 0:00:12]} 35. Kf4 {[%emt 0:01:17]} c4 {[%emt 0:05:18]} 36. Ke4 {[%emt 0:02:26]} d3 {[%emt 0:00:14]} 37. cxd3 {[%emt 0:00:21]} c3 {[%emt 0:00:18]} 38. Ke3 {[%emt 0:00:14]} Kxe5 {[%emt 0:00:08]} 39. d4+ {[%emt 0:00:22]} Kd5 {[%emt 0:00:06]} 40. Kd3 {[%emt 0:00:35]} c2 {[%emt 0:00:08]} 41. Kxc2 {[%emt 0:00:26]} Kxd4 {[%emt 0:00:31]} 42. Kd2 {[%emt 0:00:13]} Ke4 {[%emt 0:00:08]} 43. Ke2 {[%emt 0:00:16]} Kf4 {[%emt 0:00:11]} 44. Kf2 {[%emt 0:00:10]} Kxg4 {[%emt 0:00:06]} 45. Kg2 {[%emt 0:00:04]} Kf4 {[%emt 0:00:08]} 46. Kh3 {[%emt 0:05:45]} Ke3 {[%emt 0:00:13]} 47. Kg4 {[%emt 0:00:24]} Kd3 {[%emt 0:00:07]} 48. Kh5 {[%emt 0:00:27]} Kc3 {[%emt 0:00:04]} 49. Kxh6 {[%emt 0:00:07]} Kb3 {[%emt 0:00:04]} 50. Kg5 {[%emt 0:00:33]} Kxa3 {[%emt 0:00:06]} 51. Kf4 {[%emt 0:00:16]} Kxb4 {[%emt 0:00:05]} 52. Ke3 {[%emt 0:01:03]} Kc3 {[%emt 0:00:07]} 53. Ke2 {[%emt 0:00:18]} Kc2 {[%emt 0:00:06]} 54. Ke3 {[%emt 0:00:29]} b4 {[%emt 0:00:14]} 55. Kd4 {[%emt 0:00:34]} b3 {[%emt 0:00:05]} 0-1

[Event "HUN-chT Youth 2019"]
[Site "Budapest"]
[Date "2019.10.29"]
[Round "6"]
[White "Hajdu, Marton Abris"]
[Black "Lehocz, Jozsef Jr."]
[Result "1-0"]
[ECO "B01"]
[WhiteElo "1818"]
[BlackElo "1447"]
[Annotator "NA RC"]
[PlyCount "89"]
[EventDate "2019.??.??"]
[EventCountry "HUN"]
[SourceTitle "playchess.com"]
[Source "ChessBase"]
[SourceQuality "1"]
[TimeControl "5400+30"]

1. e4 d5 2. exd5 Qxd5 3. Nc3 Qd6 4. g3 c6 (4... Nf6 5. Bg2 g6 6. Nge2 Bg7 7. O-O O-O 8. d3 c6 9. Rb1 a5 10. Bf4 e5 11. Be3 Nd5 12. Bd2 {½-½ (52) Smirin,I (2663)-Inarkiev,E (2680) Khanty-Mansiysk 2013}) 5. Bg2 Nf6 6. Nge2 {B01: Scandinavian Defence} Bf5 7. O-O e6 8. d4 Be7 9. Bf4 Qd8 10. Qd2 O-O 11. h3 $146 ({Predecessor:} 11. Nd1 Be4 12. Ne3 Bxg2 13. Kxg2 {½-½ (13) Striechman,O (1897)-Kudischewitsch,D (2336) Tel Aviv 2011}) 11... Nbd7 12. Kh2 h5 13. Rad1 Nb6 14. Qc1 Nbd5 15. Be3 Qc7 16. Kh1 Rad8 17. Nxd5 Nxd5 18. c4 Nf6 19. Nc3 Rd7 20. Rfe1 Rfd8 21. a3 a5 22. Kg1 Qb8 23. Rd2 Qc7 24. Qd1 Qb8 25. Qe2 Qc7 26. Rc1 Qb8 27. Rdd1 Qc7 28. Na4 b6 29. Nc3 Qb7 30. Nb5 $11 (30. Qf3 $14) 30... Ne4 31. Nc3 Nf6 32. Rd2 Qc7 33. Qd1 Qb7 34. Qa4 Rc8 35. Rcd1 Bf8 36. Re1 Be7 37. Rc1 Bf8 38. Rcd1 Be7 39. d5 cxd5 40. cxd5 exd5 41. Nxd5 Nxd5 42. Rxd5 Rxd5 43. Rxd5 Bxh3 44. Rd8+ Rxd8 45. Bxb7 1-0

[Event "HUN-chT Youth 2019"]
[Site "Budapest"]
[Date "2019.10.29"]
[Round "6"]
[White "Csernyik, Mark"]
[Black "Puskas, Mihaly"]
[Result "1-0"]
[ECO "C50"]
[WhiteElo "1749"]
[BlackElo "1480"]
[Annotator "NA RC"]
[PlyCount "45"]
[EventDate "2019.??.??"]
[EventCountry "HUN"]
[SourceTitle "playchess.com"]
[Source "ChessBase"]
[SourceQuality "1"]
[TimeControl "5400+30"]

1. e4 e5 2. Nf3 Nc6 3. Bc4 Bc5 4. O-O d6 5. c3 Bg4 6. d3 Qd7 7. Be3 Bb6 8. Nbd2 O-O-O 9. b4 f5 10. h3 Bh5 11. Qb3 Re8 12. a4 fxe4 13. dxe4 Bxe3 14. fxe3 Kb8 15. a5 h6 16. b5 Nd8 17. b6 c6 18. bxa7+ Ka8 19. Rfb1 Nf6 20. a6 Re7 21. axb7+ Qxb7 22. Qa3 Qxa7 23. Qxd6 1-0